[Event "December 12 Early 2023"]
[Site "https://www.chess.com"]
[Date "2023.12.12"]
[Round "5"]
[White "Maksimovic, Bojan"]
[Black "Nagare Kaivalya Sandip"]
[Result "1-0"]
[Board "26"]
[TimeControl "180+1"]
[WhiteFideId "14408120"]
[BlackFideId "25957929"]
[WhiteElo "2907"]
[BlackElo "2680"]
[WhiteTeam "BIH"]
[BlackTeam "IND"]
[WhiteClock "0:01:07"]
[BlackClock "0:00:54"]

1. e4 {[%clk 0:03:00]}  e5 {[%clk 0:02:56]} 2. Nf3 {[%clk 0:02:59]}  Nc6 {[%clk 0:02:57]} 3. c3 {[%clk 0:03:00]}  Nf6 {[%clk 0:02:52]} 4. d4 {[%clk 0:02:59]}  exd4 {[%clk 0:02:50]} 5. Bd3 {[%clk 0:02:56]}  dxc3 {[%clk 0:02:36]} 6. Nxc3 {[%clk 0:02:57]}  d6 {[%clk 0:02:28]} 7. O-O {[%clk 0:02:54]}  Be7 {[%clk 0:02:28]} 8. Bf4 {[%clk 0:02:24]}  O-O {[%clk 0:02:27]} 9. h3 {[%clk 0:02:22]}  Be6 {[%clk 0:02:20]} 10. Qe2 {[%clk 0:02:19]}  Nd7 {[%clk 0:02:16]} 11. Rad1 {[%clk 0:02:17]}  Nc5 {[%clk 0:02:00]} 12. Bb1 {[%clk 0:02:15]}  Qc8 {[%clk 0:01:51]} 13. Nd5 {[%clk 0:02:10]}  Bd8 {[%clk 0:01:47]} 14. Rfe1 {[%clk 0:02:10]}  Ne7 {[%clk 0:01:40]} 15. Qc2 {[%clk 0:01:30]}  Ng6 {[%clk 0:01:33]} 16. Bg3 {[%clk 0:01:29]}  f6 {[%clk 0:01:29]} 17. Nd4 {[%clk 0:01:20]}  Bf7 {[%clk 0:01:26]} 18. b4 {[%clk 0:01:17]}  Nd7 {[%clk 0:01:27]} 19. Nf5 {[%clk 0:01:15]}  Nde5 {[%clk 0:01:22]} 20. f4 {[%clk 0:01:09]}  Nd7 {[%clk 0:01:14]} 21. h4 {[%clk 0:01:09]}  Bxd5 {[%clk 0:01:04]} 22. exd5 {[%clk 0:01:08]}  Nb6 {[%clk 0:00:55]} 23. h5 {[%clk 0:01:08]}  Nh8 {[%clk 0:00:54]} 24. Nh6+ {[%clk 0:01:07]} 1-0

[Event "December 12 Early 2023"]
[Site "https://www.chess.com"]
[Date "2023.12.12"]
[Round "5"]
[White "Kozak, Antoni"]
[Black "Demchenko, Anton"]
[Result "1-0"]
[Board "30"]
[TimeControl "180+1"]
[WhiteFideId "21832030"]
[BlackFideId "4160258"]
[WhiteElo "2748"]
[BlackElo "2889"]
[WhiteTeam "POL"]
[BlackTeam "SLO"]
[WhiteClock "0:00:11"]
[BlackClock "0:00:00"]

1. Nf3 {[%clk 0:03:00]}  Nf6 {[%clk 0:02:59]} 2. c4 {[%clk 0:02:59]}  d6 {[%clk 0:02:56]} 3. Nc3 {[%clk 0:02:57]}  e5 {[%clk 0:02:55]} 4. d4 {[%clk 0:02:54]}  Nc6 {[%clk 0:02:55]} 5. d5 {[%clk 0:02:51]}  Ne7 {[%clk 0:02:53]} 6. h3 {[%clk 0:02:51]}  Ng6 {[%clk 0:02:53]} 7. g4 {[%clk 0:02:26]}  h5 {[%clk 0:02:45]} 8. g5 {[%clk 0:02:26]}  Nd7 {[%clk 0:02:44]} 9. h4 {[%clk 0:02:13]}  Be7 {[%clk 0:02:42]} 10. Bh3 {[%clk 0:02:13]}  Nb6 {[%clk 0:02:35]} 11. Be3 {[%clk 0:01:50]}  Bxh3 {[%clk 0:02:33]} 12. Rxh3 {[%clk 0:01:50]}  Qd7 {[%clk 0:02:34]} 13. Rg3 {[%clk 0:01:49]}  Nxc4 {[%clk 0:02:32]} 14. Qb3 {[%clk 0:01:44]}  Nb6 {[%clk 0:01:59]} 15. a4 {[%clk 0:01:43]}  c6 {[%clk 0:01:29]} 16. Bxb6 {[%clk 0:01:18]}  axb6 {[%clk 0:01:29]} 17. Qxb6 {[%clk 0:01:18]}  O-O {[%clk 0:01:29]} 18. Rd1 {[%clk 0:01:18]}  Bd8 {[%clk 0:01:20]} 19. Qb3 {[%clk 0:01:15]}  Ba5 {[%clk 0:01:21]} 20. Kf1 {[%clk 0:01:14]}  Bxc3 {[%clk 0:01:20]} 21. bxc3 {[%clk 0:01:13]}  c5 {[%clk 0:01:13]} 22. Ra1 {[%clk 0:01:03]}  b5 {[%clk 0:01:11]} 23. a5 {[%clk 0:01:02]}  Ra6 {[%clk 0:01:07]} 24. Nd2 {[%clk 0:00:48]}  Rfa8 {[%clk 0:01:07]} 25. Ne4 {[%clk 0:00:35]}  Rxa5 {[%clk 0:01:03]} 26. Rxa5 {[%clk 0:00:32]}  Rxa5 {[%clk 0:01:04]} 27. Kg2 {[%clk 0:00:30]}  Nxh4+ {[%clk 0:01:03]} 28. Kh2 {[%clk 0:00:31]}  Ng6 {[%clk 0:01:00]} 29. Qb1 {[%clk 0:00:24]}  Ra4 {[%clk 0:00:57]} 30. e3 {[%clk 0:00:20]}  h4 {[%clk 0:00:47]} 31. Rg1 {[%clk 0:00:21]}  Kh8 {[%clk 0:00:40]} 32. Nd2 {[%clk 0:00:18]}  b4 {[%clk 0:00:26]} 33. cxb4 {[%clk 0:00:17]}  Rxb4 {[%clk 0:00:27]} 34. Qd3 {[%clk 0:00:16]}  Rg4 {[%clk 0:00:26]} 35. Ra1 {[%clk 0:00:13]}  Rxg5 {[%clk 0:00:19]} 36. Ne4 {[%clk 0:00:13]}  Rf5 {[%clk 0:00:10]} 37. Qe2 {[%clk 0:00:10]}  Kh7 {[%clk 0:00:04]} 38. Qg4 {[%clk 0:00:09]}  Ne7 {[%clk 0:00:04]} 39. Qxh4+ {[%clk 0:00:08]}  Kg8 {[%clk 0:00:03]} 40. Ra8+ {[%clk 0:00:08]}  Nc8 {[%clk 0:00:04]} 41. Nxd6 {[%clk 0:00:06]}  g6 {[%clk 0:00:01]} 42. Rxc8+ {[%clk 0:00:06]}  Qxc8 {[%clk 0:00:01]} 43. Nxc8 {[%clk 0:00:06]}  Rh5 {[%clk 0:00:02]} 44. Qxh5 {[%clk 0:00:07]}  gxh5 {[%clk 0:00:03]} 45. Nd6 {[%clk 0:00:07]}  Kf8 {[%clk 0:00:03]} 46. Nc4 {[%clk 0:00:07]}  Ke7 {[%clk 0:00:03]} 47. e4 {[%clk 0:00:08]}  f6 {[%clk 0:00:03]} 48. f3 {[%clk 0:00:08]}  Kf7 {[%clk 0:00:04]} 49. Kh3 {[%clk 0:00:09]}  Kg6 {[%clk 0:00:04]} 50. Kh4 {[%clk 0:00:09]}  Kh6 {[%clk 0:00:04]} 51. d6 {[%clk 0:00:10]}  Kg7 {[%clk 0:00:05]} 52. d7 {[%clk 0:00:10]}  Kf7 {[%clk 0:00:06]} 53. d8=Q {[%clk 0:00:11]}  Ke6 {[%clk 0:00:07]} 54. Qc8+ {[%clk 0:00:11]}  Ke7 {[%clk 0:00:00]} 55. Qxc5+ {[%clk 0:00:11]} 1-0

[Event "December 12 Early 2023"]
[Site "https://www.chess.com"]
[Date "2023.12.12"]
[Round "5"]
[White "Xu, Yi"]
[Black "Omelja, Artem"]
[Result "1-0"]
[Board "33"]
[TimeControl "180+1"]
[WhiteFideId "8605564"]
[BlackFideId "14119846"]
[WhiteElo "2855"]
[BlackElo "2646"]
[WhiteTeam "CHN"]
[BlackTeam "UKR"]
[WhiteClock "0:00:59"]
[BlackClock "0:00:00"]

1. e4 {[%clk 0:03:00]}  c5 {[%clk 0:02:53]} 2. Nf3 {[%clk 0:03:00]}  e6 {[%clk 0:02:53]} 3. d4 {[%clk 0:03:01]}  cxd4 {[%clk 0:02:54]} 4. Nxd4 {[%clk 0:03:01]}  Nf6 {[%clk 0:02:54]} 5. Nc3 {[%clk 0:03:02]}  Nc6 {[%clk 0:02:52]} 6. Nxc6 {[%clk 0:03:01]}  bxc6 {[%clk 0:02:53]} 7. e5 {[%clk 0:03:02]}  Nd5 {[%clk 0:02:53]} 8. Ne4 {[%clk 0:03:03]}  Qc7 {[%clk 0:02:54]} 9. f4 {[%clk 0:03:03]}  Qb6 {[%clk 0:02:55]} 10. c4 {[%clk 0:03:02]}  Bb4+ {[%clk 0:02:55]} 11. Ke2 {[%clk 0:03:02]}  Ba6 {[%clk 0:02:56]} 12. Kf3 {[%clk 0:03:00]}  f5 {[%clk 0:02:57]} 13. exf6 {[%clk 0:02:37]}  Nxf6 {[%clk 0:02:57]} 14. c5 {[%clk 0:02:23]}  Qa5 {[%clk 0:01:32]} 15. Nd6+ {[%clk 0:02:21]}  Ke7 {[%clk 0:01:28]} 16. Bxa6 {[%clk 0:02:20]}  Qxa6 {[%clk 0:00:53]} 17. Be3 {[%clk 0:02:20]}  Rhf8 {[%clk 0:00:44]} 18. Qd4 {[%clk 0:01:51]}  Ba5 {[%clk 0:00:32]} 19. Rad1 {[%clk 0:01:44]}  Bc7 {[%clk 0:00:17]} 20. a3 {[%clk 0:01:32]}  Rab8 {[%clk 0:00:17]} 21. Rhe1 {[%clk 0:01:28]}  Rbd8 {[%clk 0:00:10]} 22. f5 {[%clk 0:01:26]}  Bxd6 {[%clk 0:00:02]} 23. Qxd6+ {[%clk 0:01:17]}  Kf7 {[%clk 0:00:03]} 24. Bd4 {[%clk 0:01:09]}  Rfe8 {[%clk 0:00:02]} 25. Bxf6 {[%clk 0:01:06]}  gxf6 {[%clk 0:00:02]} 26. fxe6+ {[%clk 0:01:04]}  dxe6 {[%clk 0:00:02]} 27. Qc7+ {[%clk 0:01:04]}  Kg6 {[%clk 0:00:01]} 28. Rxd8 {[%clk 0:01:02]}  Rxd8 {[%clk 0:00:02]} 29. Qxd8 {[%clk 0:01:02]}  Qc4 {[%clk 0:00:03]} 30. Qg8+ {[%clk 0:01:00]}  Kf5 {[%clk 0:00:00]} 31. g4+ {[%clk 0:00:59]} 1-0

[Event "December 12 Early 2023"]
[Site "https://www.chess.com"]
[Date "2023.12.12"]
[Round "5"]
[White "Golubev, Mikhail"]
[Black "Corrales Jimenez, Fidel"]
[Result "1-0"]
[Board "34"]
[TimeControl "180+1"]
[WhiteFideId "14100983"]
[BlackFideId "3506690"]
[WhiteElo "2645"]
[BlackElo "2853"]
[WhiteTeam "UKR"]
[BlackTeam "USA"]
[WhiteClock "0:00:03"]
[BlackClock "0:00:01"]

1. e4 {[%clk 0:03:00]}  d5 {[%clk 0:02:59]} 2. exd5 {[%clk 0:03:00]}  Qxd5 {[%clk 0:03:00]} 3. Nf3 {[%clk 0:03:00]}  Nf6 {[%clk 0:02:59]} 4. d4 {[%clk 0:02:57]}  c6 {[%clk 0:02:59]} 5. Be2 {[%clk 0:02:56]}  Bf5 {[%clk 0:02:58]} 6. O-O {[%clk 0:02:54]}  e6 {[%clk 0:02:57]} 7. c4 {[%clk 0:02:54]}  Qa5 {[%clk 0:02:56]} 8. a3 {[%clk 0:02:45]}  Be7 {[%clk 0:02:55]} 9. Nc3 {[%clk 0:02:45]}  O-O {[%clk 0:02:53]} 10. Bf4 {[%clk 0:02:44]}  h6 {[%clk 0:02:48]} 11. b4 {[%clk 0:02:41]}  Qd8 {[%clk 0:02:48]} 12. Qb3 {[%clk 0:02:29]}  Nbd7 {[%clk 0:02:48]} 13. Rad1 {[%clk 0:02:24]}  a5 {[%clk 0:02:42]} 14. Ne5 {[%clk 0:01:54]}  axb4 {[%clk 0:02:41]} 15. axb4 {[%clk 0:01:54]}  Qb6 {[%clk 0:02:30]} 16. c5 {[%clk 0:01:54]}  Qa7 {[%clk 0:02:30]} 17. Nc4 {[%clk 0:01:49]}  Nd5 {[%clk 0:02:23]} 18. Bd6 {[%clk 0:01:37]}  Bxd6 {[%clk 0:02:16]} 19. Nxd6 {[%clk 0:01:36]}  Bg6 {[%clk 0:02:09]} 20. Nxd5 {[%clk 0:01:03]}  exd5 {[%clk 0:02:09]} 21. f4 {[%clk 0:00:49]}  Nf6 {[%clk 0:01:55]} 22. f5 {[%clk 0:00:38]}  Bh7 {[%clk 0:01:55]} 23. Qg3 {[%clk 0:00:30]}  Kh8 {[%clk 0:01:54]} 24. b5 {[%clk 0:00:26]}  cxb5 {[%clk 0:01:46]} 25. Bxb5 {[%clk 0:00:25]}  b6 {[%clk 0:01:46]} 26. c6 {[%clk 0:00:22]}  Rad8 {[%clk 0:01:45]} 27. Nb7 {[%clk 0:00:19]}  Rc8 {[%clk 0:01:43]} 28. Rc1 {[%clk 0:00:19]}  Ne4 {[%clk 0:01:41]} 29. Qf4 {[%clk 0:00:16]}  Qa3 {[%clk 0:01:39]} 30. c7 {[%clk 0:00:13]}  Qb2 {[%clk 0:01:38]} 31. Bd7 {[%clk 0:00:11]}  Nc3 {[%clk 0:01:29]} 32. Kh1 {[%clk 0:00:10]}  b5 {[%clk 0:01:07]} 33. Bxc8 {[%clk 0:00:09]}  Rxc8 {[%clk 0:01:08]} 34. f6 {[%clk 0:00:09]}  g5 {[%clk 0:01:07]} 35. Qd6 {[%clk 0:00:08]}  Bf5 {[%clk 0:01:02]} 36. Qd8+ {[%clk 0:00:08]}  Kh7 {[%clk 0:01:02]} 37. Nd6 {[%clk 0:00:08]}  Ne2 {[%clk 0:00:04]} 38. Nxf5 {[%clk 0:00:05]}  Nf4 {[%clk 0:00:02]} 39. Ne3 {[%clk 0:00:02]}  Rxc7 {[%clk 0:00:01]} 40. Qxc7 {[%clk 0:00:02]}  Qe2 {[%clk 0:00:02]} 41. Qxf7+ {[%clk 0:00:02]}  Kh8 {[%clk 0:00:01]} 42. Qg7# {[%clk 0:00:03]} 1-0

[Event "December 12 Early 2023"]
[Site "https://www.chess.com"]
[Date "2023.12.12"]
[Round "5"]
[White "Ovetchkin, Roman"]
[Black "Finek, Vaclav"]
[Result "0-1"]
[Board "36"]
[TimeControl "180+1"]
[WhiteFideId "4119991"]
[BlackFideId "23718293"]
[WhiteElo "2641"]
[BlackElo "2841"]
[WhiteTeam "RUS"]
[BlackTeam "CZE"]
[WhiteClock "0:00:03"]
[BlackClock "0:00:10"]

1. d4 {[%clk 0:03:00]}  d5 {[%clk 0:02:56]} 2. c4 {[%clk 0:03:00]}  c6 {[%clk 0:02:56]} 3. Nf3 {[%clk 0:03:00]}  Nf6 {[%clk 0:02:56]} 4. Qc2 {[%clk 0:03:00]}  g6 {[%clk 0:02:55]} 5. Bf4 {[%clk 0:02:59]}  Bg7 {[%clk 0:02:55]} 6. e3 {[%clk 0:03:00]}  O-O {[%clk 0:02:55]} 7. Nc3 {[%clk 0:03:00]}  c5 {[%clk 0:02:54]} 8. dxc5 {[%clk 0:02:42]}  Qa5 {[%clk 0:02:52]} 9. Qa4 {[%clk 0:02:36]}  Qxa4 {[%clk 0:02:42]} 10. Nxa4 {[%clk 0:02:36]}  Ne4 {[%clk 0:02:41]} 11. cxd5 {[%clk 0:02:08]}  Bd7 {[%clk 0:02:13]} 12. Bd3 {[%clk 0:02:06]}  f5 {[%clk 0:02:01]} 13. c6 {[%clk 0:01:59]}  bxc6 {[%clk 0:01:58]} 14. Ne5 {[%clk 0:01:52]}  cxd5 {[%clk 0:01:49]} 15. Nxd7 {[%clk 0:01:51]}  Nxd7 {[%clk 0:01:49]} 16. Bb5 {[%clk 0:01:15]}  Nb6 {[%clk 0:01:42]} 17. Nxb6 {[%clk 0:01:02]}  axb6 {[%clk 0:01:40]} 18. Bc6 {[%clk 0:00:57]}  Ra5 {[%clk 0:01:37]} 19. Rd1 {[%clk 0:00:51]}  e6 {[%clk 0:01:30]} 20. f3 {[%clk 0:00:49]}  Nc5 {[%clk 0:01:12]} 21. O-O {[%clk 0:00:38]}  Rxa2 {[%clk 0:00:56]} 22. b4 {[%clk 0:00:38]}  Na6 {[%clk 0:00:52]} 23. Bd7 {[%clk 0:00:37]}  Kf7 {[%clk 0:00:50]} 24. e4 {[%clk 0:00:37]}  Nxb4 {[%clk 0:00:46]} 25. exf5 {[%clk 0:00:35]}  exf5 {[%clk 0:00:30]} 26. Rfe1 {[%clk 0:00:29]}  Bc3 {[%clk 0:00:20]} 27. Re6 {[%clk 0:00:17]}  Rfa8 {[%clk 0:00:06]} 28. Rxb6 {[%clk 0:00:15]}  Ra1 {[%clk 0:00:06]} 29. Be6+ {[%clk 0:00:10]}  Ke8 {[%clk 0:00:06]} 30. Rxa1 {[%clk 0:00:07]}  Rxa1+ {[%clk 0:00:07]} 31. Kf2 {[%clk 0:00:08]}  Bd4+ {[%clk 0:00:08]} 32. Be3 {[%clk 0:00:08]}  Bxb6 {[%clk 0:00:08]} 33. Bxb6 {[%clk 0:00:08]}  Ra6 {[%clk 0:00:09]} 34. Bc5 {[%clk 0:00:08]}  Nd3+ {[%clk 0:00:10]} 35. Ke3 {[%clk 0:00:08]}  Nxc5 {[%clk 0:00:10]} 36. Bxd5 {[%clk 0:00:08]}  Rd6 {[%clk 0:00:10]} 37. Kd4 {[%clk 0:00:03]}  Nd7 {[%clk 0:00:10]} 0-1

[Event "December 12 Early 2023"]
[Site "https://www.chess.com"]
[Date "2023.12.12"]
[Round "5"]
[White "Koelle, Tobias"]
[Black "Principe, Gerson"]
[Result "1/2-1/2"]
[Board "40"]
[TimeControl "180+1"]
[WhiteFideId "16207378"]
[BlackFideId "3804550"]
[WhiteElo "2826"]
[BlackElo "2614"]
[WhiteTeam "GER"]
[BlackTeam "PER"]
[WhiteClock "0:02:18"]
[BlackClock "0:02:07"]

1. d4 {[%clk 0:02:24]}  Nf6 {[%clk 0:02:58]} 2. Nc3 {[%clk 0:02:24]}  d5 {[%clk 0:02:58]} 3. Bf4 {[%clk 0:02:25]}  e6 {[%clk 0:02:59]} 4. Nb5 {[%clk 0:02:25]}  Na6 {[%clk 0:02:59]} 5. e3 {[%clk 0:02:25]}  c6 {[%clk 0:02:59]} 6. Nc3 {[%clk 0:02:26]}  Bd6 {[%clk 0:03:00]} 7. Bxd6 {[%clk 0:02:25]}  Qxd6 {[%clk 0:02:59]} 8. Bxa6 {[%clk 0:02:26]}  bxa6 {[%clk 0:03:00]} 9. Na4 {[%clk 0:02:25]}  Nd7 {[%clk 0:02:52]} 10. Qd3 {[%clk 0:02:25]}  Rb8 {[%clk 0:02:47]} 11. Qc3 {[%clk 0:02:20]}  e5 {[%clk 0:02:20]} 12. Ne2 {[%clk 0:02:19]}  O-O {[%clk 0:02:19]} 13. Nc1 {[%clk 0:02:18]}  exd4 {[%clk 0:02:19]} 14. exd4 {[%clk 0:02:18]}  Re8+ {[%clk 0:02:07]} 15. Kd1 {[%clk 0:02:18]} 1/2-1/2

[Event "December 12 Early 2023"]
[Site "https://www.chess.com"]
[Date "2023.12.12"]
[Round "5"]
[White "Dragun, Kamil"]
[Black "Belov, Alexei"]
[Result "1-0"]
[Board "46"]
[TimeControl "180+1"]
[WhiteFideId "1134167"]
[BlackFideId "4128206"]
[WhiteElo "2793"]
[BlackElo "2585"]
[WhiteTeam "POL"]
[BlackTeam "RUS"]
[WhiteClock "0:00:09"]
[BlackClock "0:00:01"]

1. d4 {[%clk 0:03:00]}  d5 {[%clk 0:02:58]} 2. c4 {[%clk 0:03:01]}  e6 {[%clk 0:02:58]} 3. Nf3 {[%clk 0:02:59]}  Nf6 {[%clk 0:02:56]} 4. Nc3 {[%clk 0:02:59]}  Be7 {[%clk 0:02:56]} 5. Bf4 {[%clk 0:02:58]}  O-O {[%clk 0:02:56]} 6. e3 {[%clk 0:02:57]}  Nbd7 {[%clk 0:02:56]} 7. c5 {[%clk 0:02:55]}  c6 {[%clk 0:02:56]} 8. h3 {[%clk 0:02:55]}  b6 {[%clk 0:02:55]} 9. b4 {[%clk 0:02:55]}  a5 {[%clk 0:02:55]} 10. a3 {[%clk 0:02:55]}  h6 {[%clk 0:02:52]} 11. Bd3 {[%clk 0:02:49]}  Ba6 {[%clk 0:02:52]} 12. O-O {[%clk 0:02:50]}  Qc8 {[%clk 0:02:51]} 13. Rc1 {[%clk 0:02:38]}  Bxd3 {[%clk 0:02:44]} 14. Qxd3 {[%clk 0:02:39]}  Qb7 {[%clk 0:02:45]} 15. Ne5 {[%clk 0:02:06]}  axb4 {[%clk 0:02:32]} 16. axb4 {[%clk 0:02:05]}  Ra3 {[%clk 0:02:32]} 17. b5 {[%clk 0:01:27]}  Nxe5 {[%clk 0:02:31]} 18. dxe5 {[%clk 0:01:27]}  Ne4 {[%clk 0:02:22]} 19. bxc6 {[%clk 0:01:28]}  Qxc6 {[%clk 0:02:14]} 20. Nxd5 {[%clk 0:01:28]}  Bxc5 {[%clk 0:01:29]} 21. Ne7+ {[%clk 0:00:55]}  Bxe7 {[%clk 0:01:28]} 22. Qxa3 {[%clk 0:00:55]}  Bc5 {[%clk 0:01:13]} 23. Qd3 {[%clk 0:00:53]}  g5 {[%clk 0:01:07]} 24. Bh2 {[%clk 0:00:48]}  Qd5 {[%clk 0:00:49]} 25. Qxd5 {[%clk 0:00:44]}  exd5 {[%clk 0:00:50]} 26. Rfd1 {[%clk 0:00:43]}  Rd8 {[%clk 0:00:51]} 27. Rd3 {[%clk 0:00:37]}  Bb4 {[%clk 0:00:31]} 28. Rb1 {[%clk 0:00:37]}  Bc5 {[%clk 0:00:30]} 29. Rbd1 {[%clk 0:00:36]}  Ra8 {[%clk 0:00:26]} 30. Rxd5 {[%clk 0:00:37]}  Ra2 {[%clk 0:00:26]} 31. Bg3 {[%clk 0:00:31]}  Nxg3 {[%clk 0:00:25]} 32. fxg3 {[%clk 0:00:29]}  Bxe3+ {[%clk 0:00:24]} 33. Kh2 {[%clk 0:00:30]}  h5 {[%clk 0:00:24]} 34. Rd7 {[%clk 0:00:26]}  Rf2 {[%clk 0:00:23]} 35. e6 {[%clk 0:00:26]}  fxe6 {[%clk 0:00:23]} 36. Re1 {[%clk 0:00:21]}  Bc5 {[%clk 0:00:20]} 37. Rxe6 {[%clk 0:00:22]}  h4 {[%clk 0:00:21]} 38. Re8+ {[%clk 0:00:21]}  Rf8 {[%clk 0:00:21]} 39. Rxf8+ {[%clk 0:00:20]}  Kxf8 {[%clk 0:00:21]} 40. g4 {[%clk 0:00:16]}  Bf2 {[%clk 0:00:20]} 41. Rb7 {[%clk 0:00:15]}  Ke8 {[%clk 0:00:19]} 42. Rg7 {[%clk 0:00:14]}  Be3 {[%clk 0:00:19]} 43. g3 {[%clk 0:00:12]}  hxg3+ {[%clk 0:00:18]} 44. Kxg3 {[%clk 0:00:13]}  Kd8 {[%clk 0:00:17]} 45. Kf3 {[%clk 0:00:13]}  Bd2 {[%clk 0:00:16]} 46. Ke4 {[%clk 0:00:13]}  Kc8 {[%clk 0:00:16]} 47. Kd5 {[%clk 0:00:14]}  Be3 {[%clk 0:00:11]} 48. Kc6 {[%clk 0:00:13]}  Kd8 {[%clk 0:00:11]} 49. Kd5 {[%clk 0:00:12]}  Kc8 {[%clk 0:00:11]} 50. Ke4 {[%clk 0:00:12]}  Bd2 {[%clk 0:00:10]} 51. Kf5 {[%clk 0:00:13]}  b5 {[%clk 0:00:10]} 52. Ke4 {[%clk 0:00:08]}  b4 {[%clk 0:00:10]} 53. Kd3 {[%clk 0:00:09]}  Bf4 {[%clk 0:00:09]} 54. Kc4 {[%clk 0:00:08]}  Bd2 {[%clk 0:00:10]} 55. Kb3 {[%clk 0:00:08]}  Kd8 {[%clk 0:00:09]} 56. Rf7 {[%clk 0:00:08]}  Kc8 {[%clk 0:00:08]} 57. Kc4 {[%clk 0:00:08]}  Kd8 {[%clk 0:00:08]} 58. Kd3 {[%clk 0:00:08]}  Bc3 {[%clk 0:00:07]} 59. Rf5 {[%clk 0:00:07]}  Ba1 {[%clk 0:00:04]} 60. Rxg5 {[%clk 0:00:07]}  Kc7 {[%clk 0:00:04]} 61. Rf5 {[%clk 0:00:07]}  Kc6 {[%clk 0:00:05]} 62. g5 {[%clk 0:00:08]}  b3 {[%clk 0:00:05]} 63. g6 {[%clk 0:00:08]}  b2 {[%clk 0:00:06]} 64. Kc2 {[%clk 0:00:08]}  Kd6 {[%clk 0:00:01]} 65. Kb1 {[%clk 0:00:09]} 1-0

[Event "December 12 Early 2023"]
[Site "https://www.chess.com"]
[Date "2023.12.12"]
[Round "5"]
[White "Yuan, Qingyu"]
[Black "Yelisieiev, Yevhenii"]
[Result "1/2-1/2"]
[Board "47"]
[TimeControl "180+1"]
[WhiteFideId "8609772"]
[BlackFideId "14139642"]
[WhiteElo "2791"]
[BlackElo "2572"]
[WhiteTeam "CHN"]
[BlackTeam "GER"]
[WhiteClock "0:00:08"]
[BlackClock "0:00:04"]

1. e4 {[%clk 0:03:00]}  d6 {[%clk 0:03:00]} 2. d4 {[%clk 0:03:00]}  Nf6 {[%clk 0:03:00]} 3. Nc3 {[%clk 0:03:01]}  e5 {[%clk 0:03:01]} 4. Nf3 {[%clk 0:02:58]}  Nbd7 {[%clk 0:03:00]} 5. Rg1 {[%clk 0:02:57]}  c6 {[%clk 0:02:58]} 6. g4 {[%clk 0:02:55]}  h6 {[%clk 0:02:58]} 7. Be3 {[%clk 0:02:52]}  b5 {[%clk 0:02:57]} 8. a3 {[%clk 0:02:46]}  Bb7 {[%clk 0:02:39]} 9. h4 {[%clk 0:02:39]}  h5 {[%clk 0:02:25]} 10. gxh5 {[%clk 0:02:11]}  Rxh5 {[%clk 0:02:21]} 11. Qd2 {[%clk 0:02:08]}  a5 {[%clk 0:02:19]} 12. dxe5 {[%clk 0:01:59]}  dxe5 {[%clk 0:02:17]} 13. Be2 {[%clk 0:01:53]}  b4 {[%clk 0:02:17]} 14. Na4 {[%clk 0:01:52]}  Nxe4 {[%clk 0:02:11]} 15. Qd1 {[%clk 0:01:40]}  bxa3 {[%clk 0:01:40]} 16. bxa3 {[%clk 0:01:38]}  Ndc5 {[%clk 0:01:39]} 17. Nxc5 {[%clk 0:01:29]}  Bxc5 {[%clk 0:01:36]} 18. Ng5 {[%clk 0:01:13]}  Bxe3 {[%clk 0:01:22]} 19. Nxe4 {[%clk 0:01:10]}  Qxh4 {[%clk 0:00:32]} 20. Qd3 {[%clk 0:00:46]}  Bd4 {[%clk 0:00:10]} 21. Bxh5 {[%clk 0:00:41]}  Qxh5 {[%clk 0:00:04]} 22. c3 {[%clk 0:00:22]}  Ba6 {[%clk 0:00:04]} 23. Qd1 {[%clk 0:00:21]}  Qf5 {[%clk 0:00:04]} 24. Qg4 {[%clk 0:00:17]}  Qxg4 {[%clk 0:00:03]} 25. Rxg4 {[%clk 0:00:18]}  Ba7 {[%clk 0:00:02]} 26. Rxg7 {[%clk 0:00:15]}  Kf8 {[%clk 0:00:03]} 27. Rh7 {[%clk 0:00:15]}  Ke7 {[%clk 0:00:03]} 28. O-O-O {[%clk 0:00:14]}  Bc4 {[%clk 0:00:02]} 29. Nd6 {[%clk 0:00:11]}  Bd5 {[%clk 0:00:02]} 30. Nf5+ {[%clk 0:00:11]}  Ke6 {[%clk 0:00:03]} 31. Ne3 {[%clk 0:00:11]}  Bxe3+ {[%clk 0:00:01]} 32. fxe3 {[%clk 0:00:11]}  Rb8 {[%clk 0:00:02]} 33. Rh6+ {[%clk 0:00:11]}  Ke7 {[%clk 0:00:02]} 34. e4 {[%clk 0:00:09]}  Be6 {[%clk 0:00:02]} 35. Kd2 {[%clk 0:00:07]}  Rb2+ {[%clk 0:00:02]} 36. Kd3 {[%clk 0:00:07]}  Rb3 {[%clk 0:00:03]} 37. Rh5 {[%clk 0:00:05]}  Bg4 {[%clk 0:00:03]} 38. Rxe5+ {[%clk 0:00:05]}  Kf6 {[%clk 0:00:03]} 39. Rg1 {[%clk 0:00:05]}  Kxe5 {[%clk 0:00:03]} 40. Rxg4 {[%clk 0:00:05]}  Rxa3 {[%clk 0:00:03]} 41. Rg5+ {[%clk 0:00:06]}  Ke6 {[%clk 0:00:04]} 42. Rc5 {[%clk 0:00:06]}  Kd6 {[%clk 0:00:04]} 43. Rf5 {[%clk 0:00:07]}  Ke6 {[%clk 0:00:04]} 44. Rc5 {[%clk 0:00:07]}  Kd6 {[%clk 0:00:05]} 45. Rf5 {[%clk 0:00:07]}  Ke6 {[%clk 0:00:04]} 46. Rc5 {[%clk 0:00:08]} 1/2-1/2